[Event "Titled Tuesday Blitz June 13 Early 2023"]
[White "Parondo, Rolly"]
[Black "Mekhitarian, Krikor Sevag"]
[WhiteFideId "5217407"]
[BlackFideId "2107660"]
[WhiteElo "2141"]
[BlackElo "2604"]
[Result "0-1"]
[Round "2"]
[TimeControl "180+2"]
[Date "2023.06.13"]
[WhiteClock "0:00:00"]
[BlackClock "0:00:05"]
[Board "58"]

1. d4 {[%clk 0:03:00]}  Nf6 {[%clk 0:02:54]} 2. Bf4 {[%clk 0:03:01]}  c5 {[%clk 0:02:49]} 3. e3 {[%clk 0:03:01]}  g6 {[%clk 0:02:46]} 4. c3 {[%clk 0:03:01]}  Bg7 {[%clk 0:02:46]} 5. Nf3 {[%clk 0:03:01]}  O-O {[%clk 0:02:45]} 6. Bc4 {[%clk 0:03:01]}  d6 {[%clk 0:02:41]} 7. O-O {[%clk 0:03:01]}  Nh5 {[%clk 0:02:26]} 8. Bg5 {[%clk 0:02:59]}  h6 {[%clk 0:02:25]} 9. Bh4 {[%clk 0:02:59]}  g5 {[%clk 0:02:24]} 10. Nfd2 {[%clk 0:02:57]}  cxd4 {[%clk 0:02:16]} 11. Qxh5 {[%clk 0:02:49]}  dxc3 {[%clk 0:01:55]} 12. Nxc3 {[%clk 0:02:48]}  gxh4 {[%clk 0:01:55]} 13. Qxh4 {[%clk 0:02:49]}  e6 {[%clk 0:01:53]} 14. Qg3 {[%clk 0:02:45]}  d5 {[%clk 0:01:51]} 15. Bd3 {[%clk 0:02:40]}  Qg5 {[%clk 0:01:33]} 16. Rac1 {[%clk 0:02:24]}  Nc6 {[%clk 0:01:27]} 17. Nf3 {[%clk 0:01:53]}  Qxg3 {[%clk 0:01:27]} 18. hxg3 {[%clk 0:01:54]}  f5 {[%clk 0:01:16]} 19. a3 {[%clk 0:01:50]}  Bd7 {[%clk 0:01:14]} 20. Rc2 {[%clk 0:01:48]}  Rac8 {[%clk 0:01:12]} 21. Rfc1 {[%clk 0:01:47]}  Rfd8 {[%clk 0:00:31]} 22. Ne2 {[%clk 0:01:37]}  Ne5 {[%clk 0:00:26]} 23. Nxe5 {[%clk 0:01:28]}  Bxe5 {[%clk 0:00:27]} 24. Nd4 {[%clk 0:01:19]}  a6 {[%clk 0:00:20]} 25. Kf1 {[%clk 0:01:16]}  Rxc2 {[%clk 0:00:19]} 26. Rxc2 {[%clk 0:01:16]}  Rc8 {[%clk 0:00:20]} 27. Rxc8+ {[%clk 0:01:11]}  Bxc8 {[%clk 0:00:21]} 28. Ke2 {[%clk 0:01:10]}  Kf8 {[%clk 0:00:21]} 29. b4 {[%clk 0:01:07]}  Ke7 {[%clk 0:00:21]} 30. Kd2 {[%clk 0:01:00]}  Bd6 {[%clk 0:00:21]} 31. Kc3 {[%clk 0:00:59]}  Bd7 {[%clk 0:00:21]} 32. Kb3 {[%clk 0:00:58]}  Kf6 {[%clk 0:00:21]} 33. f4 {[%clk 0:00:44]}  e5 {[%clk 0:00:21]} 34. Ne2 {[%clk 0:00:36]}  e4 {[%clk 0:00:20]} 35. Bc2 {[%clk 0:00:33]}  Bb5 {[%clk 0:00:21]} 36. Bd1 {[%clk 0:00:33]}  Bc4+ {[%clk 0:00:19]} 37. Kc3 {[%clk 0:00:33]}  a5 {[%clk 0:00:20]} 38. Nd4 {[%clk 0:00:30]}  axb4+ {[%clk 0:00:20]} 39. axb4 {[%clk 0:00:31]}  Bf1 {[%clk 0:00:20]} 40. g4 {[%clk 0:00:31]}  fxg4 {[%clk 0:00:19]} 41. Bxg4 {[%clk 0:00:32]}  Bxg2 {[%clk 0:00:19]} 42. Be6 {[%clk 0:00:32]}  h5 {[%clk 0:00:16]} 43. Bxd5 {[%clk 0:00:27]}  h4 {[%clk 0:00:16]} 44. Be6 {[%clk 0:00:17]}  h3 {[%clk 0:00:17]} 45. Bxh3 {[%clk 0:00:17]}  Bxh3 {[%clk 0:00:18]} 46. Nb5 {[%clk 0:00:17]}  Bf8 {[%clk 0:00:11]} 47. Nc7 {[%clk 0:00:15]}  Be6 {[%clk 0:00:09]} 48. b5 {[%clk 0:00:15]}  Bd7 {[%clk 0:00:08]} 49. Kd4 {[%clk 0:00:13]}  Bd6 {[%clk 0:00:08]} 50. Nd5+ {[%clk 0:00:14]}  Ke6 {[%clk 0:00:08]} 51. Kxe4 {[%clk 0:00:13]}  Bxb5 {[%clk 0:00:07]} 52. f5+ {[%clk 0:00:14]}  Kf7 {[%clk 0:00:07]} 53. Kd4 {[%clk 0:00:13]}  Bc6 {[%clk 0:00:08]} 54. Nb6 {[%clk 0:00:11]}  Kf6 {[%clk 0:00:07]} 55. e4 {[%clk 0:00:11]}  Be5+ {[%clk 0:00:07]} 56. Kd3 {[%clk 0:00:11]}  Bc7 {[%clk 0:00:06]} 57. Nc8 {[%clk 0:00:06]}  Bd7 {[%clk 0:00:04]} 58. Na7 {[%clk 0:00:00]}  Bb8 {[%clk 0:00:05]} 0-1


[Site "https://www.chess.com"]

[Event "Titled Tuesday Blitz June 13 Early 2023"]
[White "Mendez Fortes, Eduardo Jesus"]
[Black "Rahman, Masruri"]
[WhiteFideId "3502376"]
[BlackFideId "7101163"]
[WhiteElo "2307"]
[BlackElo "2256"]
[Result "1-0"]
[Round "2"]
[TimeControl "180+2"]
[Date "2023.06.13"]
[WhiteClock "0:00:10"]
[BlackClock "0:00:26"]
[Board "62"]

1. e4 {[%clk 0:03:00]}  e6 {[%clk 0:02:59]} 2. d4 {[%clk 0:03:01]}  d5 {[%clk 0:03:00]} 3. Nd2 {[%clk 0:03:02]}  c5 {[%clk 0:02:59]} 4. exd5 {[%clk 0:03:02]}  Qxd5 {[%clk 0:03:00]} 5. Ngf3 {[%clk 0:03:02]}  cxd4 {[%clk 0:03:00]} 6. Bc4 {[%clk 0:03:03]}  Qd6 {[%clk 0:03:00]} 7. O-O {[%clk 0:03:03]}  Nf6 {[%clk 0:03:01]} 8. Nb3 {[%clk 0:03:04]}  Nc6 {[%clk 0:03:01]} 9. Nbxd4 {[%clk 0:03:04]}  Nxd4 {[%clk 0:03:02]} 10. Nxd4 {[%clk 0:03:05]}  Bd7 {[%clk 0:03:03]} 11. Re1 {[%clk 0:03:00]}  O-O-O {[%clk 0:03:02]} 12. c3 {[%clk 0:03:01]}  Qc7 {[%clk 0:03:02]} 13. Qe2 {[%clk 0:03:00]}  Bd6 {[%clk 0:03:02]} 14. h3 {[%clk 0:02:57]}  Bh2+ {[%clk 0:03:01]} 15. Kh1 {[%clk 0:02:58]}  Bf4 {[%clk 0:03:02]} 16. a4 {[%clk 0:02:54]}  a6 {[%clk 0:02:48]} 17. Bxf4 {[%clk 0:02:22]}  Qxf4 {[%clk 0:02:48]} 18. Bxa6 {[%clk 0:02:19]}  h5 {[%clk 0:02:24]} 19. Qc4+ {[%clk 0:02:13]}  Qc7 {[%clk 0:02:19]} 20. Qxc7+ {[%clk 0:02:09]}  Kxc7 {[%clk 0:02:20]} 21. Be2 {[%clk 0:02:05]}  Ra8 {[%clk 0:02:05]} 22. a5 {[%clk 0:02:00]}  Ra7 {[%clk 0:01:49]} 23. Bf3 {[%clk 0:01:56]}  Rha8 {[%clk 0:01:50]} 24. b4 {[%clk 0:01:56]}  Rc8 {[%clk 0:01:49]} 25. b5 {[%clk 0:01:43]}  Kb8 {[%clk 0:01:45]} 26. a6 {[%clk 0:01:21]}  Rxc3 {[%clk 0:01:27]} 27. Bxb7 {[%clk 0:01:11]}  Rxb7 {[%clk 0:01:25]} 28. axb7 {[%clk 0:01:11]}  Kxb7 {[%clk 0:01:26]} 29. Rac1 {[%clk 0:01:02]}  Rd3 {[%clk 0:01:23]} 30. Nf3 {[%clk 0:00:59]}  Bxb5 {[%clk 0:01:19]} 31. Ne5 {[%clk 0:00:59]}  Rd2 {[%clk 0:01:17]} 32. Nxf7 {[%clk 0:00:46]}  Bc6 {[%clk 0:01:02]} 33. Rxe6 {[%clk 0:00:31]}  Bd5 {[%clk 0:01:02]} 34. Re7+ {[%clk 0:00:31]}  Kb6 {[%clk 0:01:02]} 35. Kg1 {[%clk 0:00:26]}  Ne4 {[%clk 0:01:00]} 36. f3 {[%clk 0:00:20]}  Ng3 {[%clk 0:00:58]} 37. Rce1 {[%clk 0:00:17]}  Nf5 {[%clk 0:00:55]} 38. Rd7 {[%clk 0:00:16]}  Nh4 {[%clk 0:00:54]} 39. Kh1 {[%clk 0:00:14]}  Nxg2 {[%clk 0:00:44]} 40. Rxd5 {[%clk 0:00:14]}  Rxd5 {[%clk 0:00:44]} 41. Kxg2 {[%clk 0:00:14]}  Rf5 {[%clk 0:00:44]} 42. Ne5 {[%clk 0:00:14]}  Rg5+ {[%clk 0:00:44]} 43. Kf2 {[%clk 0:00:14]}  Kc5 {[%clk 0:00:43]} 44. Nd3+ {[%clk 0:00:14]}  Kd4 {[%clk 0:00:43]} 45. Nf4 {[%clk 0:00:15]}  Ra5 {[%clk 0:00:41]} 46. Re4+ {[%clk 0:00:16]}  Kc3 {[%clk 0:00:40]} 47. h4 {[%clk 0:00:16]}  g5 {[%clk 0:00:38]} 48. hxg5 {[%clk 0:00:16]}  Rxg5 {[%clk 0:00:39]} 49. Ne2+ {[%clk 0:00:16]}  Kd3 {[%clk 0:00:38]} 50. Rd4+ {[%clk 0:00:15]}  Kc2 {[%clk 0:00:38]} 51. Ke3 {[%clk 0:00:15]}  Re5+ {[%clk 0:00:36]} 52. Re4 {[%clk 0:00:15]}  Ra5 {[%clk 0:00:34]} 53. Rc4+ {[%clk 0:00:14]}  Kb3 {[%clk 0:00:33]} 54. Rd4 {[%clk 0:00:13]}  Kc2 {[%clk 0:00:33]} 55. f4 {[%clk 0:00:12]}  h4 {[%clk 0:00:31]} 56. Rd6 {[%clk 0:00:12]}  Rh5 {[%clk 0:00:30]} 57. Rc6+ {[%clk 0:00:10]}  Kb3 {[%clk 0:00:29]} 58. Rc1 {[%clk 0:00:10]}  Rh8 {[%clk 0:00:27]} 59. Kf3 {[%clk 0:00:11]}  h3 {[%clk 0:00:26]} 60. f5 {[%clk 0:00:11]}  h2 {[%clk 0:00:26]} 61. Rh1 {[%clk 0:00:11]}  Kc4 {[%clk 0:00:26]} 62. Ng3 {[%clk 0:00:11]}  Kd5 {[%clk 0:00:26]} 63. Kg2 {[%clk 0:00:11]}  Ke5 {[%clk 0:00:24]} 64. Rxh2 {[%clk 0:00:12]}  Rg8 {[%clk 0:00:25]} 65. Rh1 {[%clk 0:00:11]}  Kf4 {[%clk 0:00:25]} 66. Rf1+ {[%clk 0:00:11]}  Ke5 {[%clk 0:00:26]} 67. f6 {[%clk 0:00:11]}  Rf8 {[%clk 0:00:26]} 68. Nh5 {[%clk 0:00:11]}  Rf7 {[%clk 0:00:26]} 69. Kh3 {[%clk 0:00:11]}  Ke6 {[%clk 0:00:25]} 70. Kg4 {[%clk 0:00:12]}  Ra7 {[%clk 0:00:26]} 71. Kg5 {[%clk 0:00:11]}  Ra5+ {[%clk 0:00:26]} 72. Kg6 {[%clk 0:00:11]}  Ra2 {[%clk 0:00:27]} 73. f7 {[%clk 0:00:10]}  Rg2+ {[%clk 0:00:26]} 74. Kh6 {[%clk 0:00:10]} 1-0


[Site "https://www.chess.com"]

[Event "Titled Tuesday Blitz June 13 Early 2023"]
[White "Perez Ponsa, Federico"]
[Black "Lymar, Vladislav"]
[WhiteFideId "117927"]
[BlackFideId "14162180"]
[WhiteElo "2590"]
[BlackElo "2234"]
[Result "0-1"]
[Round "2"]
[TimeControl "180+2"]
[Date "2023.06.13"]
[WhiteClock "0:00:22"]
[BlackClock "0:00:19"]
[Board "63"]

1. e4 {[%clk 0:02:57]}  c5 {[%clk 0:02:59]} 2. Nf3 {[%clk 0:02:58]}  a6 {[%clk 0:02:59]} 3. c3 {[%clk 0:02:57]}  d5 {[%clk 0:02:59]} 4. exd5 {[%clk 0:02:55]}  Qxd5 {[%clk 0:03:00]} 5. d4 {[%clk 0:02:56]}  Nf6 {[%clk 0:03:00]} 6. Be2 {[%clk 0:02:54]}  cxd4 {[%clk 0:03:00]} 7. cxd4 {[%clk 0:02:52]}  Nc6 {[%clk 0:03:00]} 8. Nc3 {[%clk 0:02:51]}  Qd6 {[%clk 0:03:01]} 9. d5 {[%clk 0:02:44]}  Nb4 {[%clk 0:03:00]} 10. Bc4 {[%clk 0:02:41]}  b5 {[%clk 0:03:00]} 11. a3 {[%clk 0:02:37]}  bxc4 {[%clk 0:02:56]} 12. axb4 {[%clk 0:02:37]}  e6 {[%clk 0:02:57]} 13. O-O {[%clk 0:02:21]}  exd5 {[%clk 0:02:44]} 14. Re1+ {[%clk 0:02:20]}  Be7 {[%clk 0:02:42]} 15. Qe2 {[%clk 0:02:03]}  Be6 {[%clk 0:02:30]} 16. Nd4 {[%clk 0:01:56]}  O-O {[%clk 0:02:27]} 17. Bg5 {[%clk 0:01:44]}  Rfe8 {[%clk 0:02:08]} 18. Nxe6 {[%clk 0:01:39]}  fxe6 {[%clk 0:02:07]} 19. Qxe6+ {[%clk 0:01:40]}  Qxe6 {[%clk 0:02:02]} 20. Rxe6 {[%clk 0:01:41]}  d4 {[%clk 0:01:46]} 21. Ne2 {[%clk 0:01:17]}  d3 {[%clk 0:01:39]} 22. Nd4 {[%clk 0:01:10]}  Bxb4 {[%clk 0:01:29]} 23. Rc6 {[%clk 0:01:05]}  Rac8 {[%clk 0:00:57]} 24. Be3 {[%clk 0:00:59]}  Nd5 {[%clk 0:00:50]} 25. Rd1 {[%clk 0:00:48]}  Nxe3 {[%clk 0:00:45]} 26. fxe3 {[%clk 0:00:48]}  Rxc6 {[%clk 0:00:43]} 27. Nxc6 {[%clk 0:00:49]}  Bc5 {[%clk 0:00:44]} 28. Na5 {[%clk 0:00:39]}  Rxe3 {[%clk 0:00:42]} 29. Kf1 {[%clk 0:00:39]}  Re4 {[%clk 0:00:37]} 30. g3 {[%clk 0:00:35]}  Bb4 {[%clk 0:00:25]} 31. Nc6 {[%clk 0:00:35]}  a5 {[%clk 0:00:26]} 32. Kf2 {[%clk 0:00:31]}  Re2+ {[%clk 0:00:22]} 33. Kf3 {[%clk 0:00:32]}  Rxb2 {[%clk 0:00:21]} 34. Ne5 {[%clk 0:00:33]}  Rc2 {[%clk 0:00:21]} 35. Ke4 {[%clk 0:00:33]}  d2 {[%clk 0:00:21]} 36. Kd4 {[%clk 0:00:22]}  Rc1 {[%clk 0:00:19]} 0-1


[Site "https://www.chess.com"]

[Event "Titled Tuesday Blitz June 13 Early 2023"]
[White "Stribuk, Artiom"]
[Black "Mamedov, Edgar"]
[WhiteFideId "13515659"]
[BlackFideId "13739980"]
[WhiteElo "2303"]
[BlackElo "2317"]
[Result "1-0"]
[Round "2"]
[TimeControl "180+2"]
[Date "2023.06.13"]
[WhiteClock "0:00:12"]
[BlackClock "0:00:00"]
[Board "64"]

1. d4 {[%clk 0:03:00]}  d5 {[%clk 0:02:59]} 2. c4 {[%clk 0:03:01]}  c6 {[%clk 0:02:59]} 3. Nf3 {[%clk 0:03:01]}  Nf6 {[%clk 0:02:59]} 4. g3 {[%clk 0:03:01]}  Bf5 {[%clk 0:02:56]} 5. Nc3 {[%clk 0:03:00]}  e6 {[%clk 0:02:56]} 6. Qb3 {[%clk 0:03:01]}  Qb6 {[%clk 0:02:55]} 7. c5 {[%clk 0:03:01]}  Qc7 {[%clk 0:02:54]} 8. Bf4 {[%clk 0:03:01]}  Qc8 {[%clk 0:02:54]} 9. Nh4 {[%clk 0:03:02]}  Bg4 {[%clk 0:02:52]} 10. f3 {[%clk 0:02:42]}  Bh5 {[%clk 0:02:51]} 11. g4 {[%clk 0:02:40]}  Bg6 {[%clk 0:02:50]} 12. Nxg6 {[%clk 0:02:31]}  hxg6 {[%clk 0:02:51]} 13. h4 {[%clk 0:02:32]}  Nbd7 {[%clk 0:02:50]} 14. g5 {[%clk 0:02:28]}  Ng8 {[%clk 0:02:48]} 15. e4 {[%clk 0:02:25]}  e5 {[%clk 0:02:39]} 16. Bxe5 {[%clk 0:02:00]}  Nxe5 {[%clk 0:02:31]} 17. dxe5 {[%clk 0:02:00]}  d4 {[%clk 0:02:30]} 18. Bc4 {[%clk 0:01:58]}  Qc7 {[%clk 0:02:23]} 19. Na4 {[%clk 0:01:45]}  O-O-O {[%clk 0:01:51]} 20. f4 {[%clk 0:01:24]}  Bxc5 {[%clk 0:01:43]} 21. Nxc5 {[%clk 0:01:09]}  Qa5+ {[%clk 0:01:42]} 22. Ke2 {[%clk 0:01:10]}  Qxc5 {[%clk 0:01:42]} 23. Bxf7 {[%clk 0:01:10]}  d3+ {[%clk 0:01:34]} 24. Kf3 {[%clk 0:01:09]}  Ne7 {[%clk 0:01:33]} 25. Rac1 {[%clk 0:01:09]}  Qa5 {[%clk 0:01:19]} 26. Rhd1 {[%clk 0:00:49]}  d2 {[%clk 0:01:10]} 27. Rc2 {[%clk 0:00:39]}  Rxh4 {[%clk 0:01:10]} 28. Qe6+ {[%clk 0:00:38]}  Kb8 {[%clk 0:00:51]} 29. Qxe7 {[%clk 0:00:39]}  Rdh8 {[%clk 0:00:41]} 30. Be6 {[%clk 0:00:27]}  a6 {[%clk 0:00:14]} 31. Rcxd2 {[%clk 0:00:25]}  Qb6 {[%clk 0:00:03]} 32. b4 {[%clk 0:00:15]}  Rh2 {[%clk 0:00:03]} 33. Rd8+ {[%clk 0:00:13]}  Ka7 {[%clk 0:00:00]} 34. Qc5 {[%clk 0:00:12]} 1-0


[Site "https://www.chess.com"]

[Event "Titled Tuesday Blitz June 13 Early 2023"]
[White "Arat, Ufuk Sezen"]
[Black "Vakhlamov, Igor L."]
[WhiteFideId "6309089"]
[BlackFideId "24126748"]
[WhiteElo "2289"]
[BlackElo "2407"]
[Result "1-0"]
[Round "2"]
[TimeControl "180+2"]
[Date "2023.06.13"]
[WhiteClock "0:00:18"]
[BlackClock "0:00:05"]
[Board "66"]

1. e4 {[%clk 0:03:00]}  c5 {[%clk 0:02:59]} 2. Nf3 {[%clk 0:03:00]}  e6 {[%clk 0:03:00]} 3. d4 {[%clk 0:03:01]}  cxd4 {[%clk 0:03:01]} 4. Nxd4 {[%clk 0:03:02]}  Nf6 {[%clk 0:03:01]} 5. Nc3 {[%clk 0:03:02]}  Nc6 {[%clk 0:03:01]} 6. Ndb5 {[%clk 0:03:02]}  Bc5 {[%clk 0:03:00]} 7. Bf4 {[%clk 0:03:03]}  O-O {[%clk 0:02:59]} 8. Bc7 {[%clk 0:03:03]}  Qe7 {[%clk 0:03:00]} 9. Bd6 {[%clk 0:03:03]}  Bxd6 {[%clk 0:03:00]} 10. Qxd6 {[%clk 0:03:04]}  Qd8 {[%clk 0:03:01]} 11. Qd2 {[%clk 0:02:55]}  d5 {[%clk 0:02:58]} 12. exd5 {[%clk 0:02:49]}  exd5 {[%clk 0:02:59]} 13. O-O-O {[%clk 0:02:49]}  Qa5 {[%clk 0:02:51]} 14. Kb1 {[%clk 0:02:39]}  Be6 {[%clk 0:02:39]} 15. Nd4 {[%clk 0:02:21]}  Nxd4 {[%clk 0:02:36]} 16. Qxd4 {[%clk 0:02:22]}  Rfc8 {[%clk 0:02:37]} 17. Bd3 {[%clk 0:02:20]}  Rc6 {[%clk 0:02:35]} 18. Qa4 {[%clk 0:02:16]}  Qb6 {[%clk 0:02:32]} 19. Ka1 {[%clk 0:01:53]}  Rac8 {[%clk 0:02:17]} 20. f3 {[%clk 0:01:52]}  a6 {[%clk 0:01:20]} 21. Ne2 {[%clk 0:01:38]}  Qf2 {[%clk 0:01:09]} 22. Qd4 {[%clk 0:01:30]}  Qxd4 {[%clk 0:01:05]} 23. Nxd4 {[%clk 0:01:31]}  R6c7 {[%clk 0:01:05]} 24. Rhe1 {[%clk 0:01:27]}  Bd7 {[%clk 0:01:02]} 25. c3 {[%clk 0:01:17]}  Kf8 {[%clk 0:01:02]} 26. g4 {[%clk 0:01:12]}  h6 {[%clk 0:01:02]} 27. h4 {[%clk 0:01:12]}  Ne8 {[%clk 0:01:02]} 28. Bc2 {[%clk 0:01:04]}  Nd6 {[%clk 0:01:01]} 29. Ne2 {[%clk 0:01:02]}  Bc6 {[%clk 0:00:59]} 30. Nf4 {[%clk 0:01:01]}  d4 {[%clk 0:00:43]} 31. Rxd4 {[%clk 0:00:58]}  Nb5 {[%clk 0:00:39]} 32. Rd2 {[%clk 0:00:46]}  Bxf3 {[%clk 0:00:37]} 33. a4 {[%clk 0:00:46]}  Na7 {[%clk 0:00:32]} 34. g5 {[%clk 0:00:44]}  Nc6 {[%clk 0:00:26]} 35. Rf2 {[%clk 0:00:44]}  Bg4 {[%clk 0:00:26]} 36. Rg1 {[%clk 0:00:38]}  h5 {[%clk 0:00:23]} 37. Bb3 {[%clk 0:00:25]}  Ne5 {[%clk 0:00:22]} 38. Be6 {[%clk 0:00:20]}  Re8 {[%clk 0:00:19]} 39. Bxg4 {[%clk 0:00:20]}  Nxg4 {[%clk 0:00:19]} 40. Rf3 {[%clk 0:00:20]}  Kg8 {[%clk 0:00:19]} 41. Rd1 {[%clk 0:00:20]}  g6 {[%clk 0:00:17]} 42. Rd4 {[%clk 0:00:16]}  Re5 {[%clk 0:00:15]} 43. Nd5 {[%clk 0:00:16]}  Rd7 {[%clk 0:00:14]} 44. c4 {[%clk 0:00:16]}  Kg7 {[%clk 0:00:13]} 45. Ka2 {[%clk 0:00:15]}  b5 {[%clk 0:00:13]} 46. axb5 {[%clk 0:00:15]}  axb5 {[%clk 0:00:14]} 47. b3 {[%clk 0:00:15]}  bxc4 {[%clk 0:00:14]} 48. bxc4 {[%clk 0:00:16]}  Rb7 {[%clk 0:00:13]} 49. Rb3 {[%clk 0:00:14]}  Re2+ {[%clk 0:00:13]} 50. Ka3 {[%clk 0:00:14]}  Ra7+ {[%clk 0:00:14]} 51. Kb4 {[%clk 0:00:15]}  Ne5 {[%clk 0:00:14]} 52. Kc5 {[%clk 0:00:11]}  Ra5+ {[%clk 0:00:11]} 53. Kb6 {[%clk 0:00:11]}  Ra4 {[%clk 0:00:12]} 54. Rb4 {[%clk 0:00:09]}  Ra8 {[%clk 0:00:08]} 55. c5 {[%clk 0:00:09]}  Rc2 {[%clk 0:00:09]} 56. Nc7 {[%clk 0:00:06]}  Rb8+ {[%clk 0:00:09]} 57. Ka6 {[%clk 0:00:05]}  Rc8 {[%clk 0:00:08]} 58. Rb7 {[%clk 0:00:03]}  Rxc5 {[%clk 0:00:09]} 59. Ne6+ {[%clk 0:00:04]}  Kh7 {[%clk 0:00:09]} 60. Nxc5 {[%clk 0:00:04]}  Rxc5 {[%clk 0:00:09]} 61. Rd8 {[%clk 0:00:05]}  Rc6+ {[%clk 0:00:08]} 62. Kb5 {[%clk 0:00:05]}  Re6 {[%clk 0:00:08]} 63. Rbb8 {[%clk 0:00:05]}  f5 {[%clk 0:00:01]} 64. Rh8+ {[%clk 0:00:05]}  Kg7 {[%clk 0:00:01]} 65. Rbf8 {[%clk 0:00:06]}  Nf7 {[%clk 0:00:01]} 66. Rhg8+ {[%clk 0:00:06]}  Kh7 {[%clk 0:00:02]} 67. Rb8 {[%clk 0:00:03]}  Re7 {[%clk 0:00:03]} 68. Rgf8 {[%clk 0:00:03]}  Nd6+ {[%clk 0:00:03]} 69. Kc6 {[%clk 0:00:03]}  Nf7 {[%clk 0:00:03]} 70. Rfc8 {[%clk 0:00:04]}  Kg7 {[%clk 0:00:03]} 71. Rc7 {[%clk 0:00:04]}  Re6+ {[%clk 0:00:03]} 72. Kd5 {[%clk 0:00:05]}  Re5+ {[%clk 0:00:03]} 73. Kd4 {[%clk 0:00:05]}  Re4+ {[%clk 0:00:04]} 74. Kd3 {[%clk 0:00:05]}  Re5 {[%clk 0:00:01]} 75. Rbb7 {[%clk 0:00:06]}  Rd5+ {[%clk 0:00:02]} 76. Ke3 {[%clk 0:00:06]}  Re5+ {[%clk 0:00:02]} 77. Kf3 {[%clk 0:00:07]}  Re4 {[%clk 0:00:01]} 78. Rxf7+ {[%clk 0:00:08]}  Kg8 {[%clk 0:00:02]} 79. Rg7+ {[%clk 0:00:08]}  Kf8 {[%clk 0:00:02]} 80. Rgc7 {[%clk 0:00:09]}  Re8 {[%clk 0:00:02]} 81. Ra7 {[%clk 0:00:09]}  Rb8 {[%clk 0:00:01]} 82. Rf7+ {[%clk 0:00:09]}  Kg8 {[%clk 0:00:02]} 83. Rg7+ {[%clk 0:00:09]}  Kh8 {[%clk 0:00:03]} 84. Rh7+ {[%clk 0:00:10]}  Kg8 {[%clk 0:00:02]} 85. Rag7+ {[%clk 0:00:11]}  Kf8 {[%clk 0:00:03]} 86. Rh8+ {[%clk 0:00:12]}  Kxg7 {[%clk 0:00:04]} 87. Rxb8 {[%clk 0:00:12]}  Kf7 {[%clk 0:00:05]} 88. Rb6 {[%clk 0:00:13]}  Kg7 {[%clk 0:00:05]} 89. Rf6 {[%clk 0:00:14]}  Kh7 {[%clk 0:00:06]} 90. Kf4 {[%clk 0:00:14]}  Kg7 {[%clk 0:00:07]} 91. Ke5 {[%clk 0:00:14]}  Kh7 {[%clk 0:00:07]} 92. Ke6 {[%clk 0:00:15]}  Kg7 {[%clk 0:00:08]} 93. Ke7 {[%clk 0:00:16]}  f4 {[%clk 0:00:09]} 94. Rxf4 {[%clk 0:00:16]}  Kg8 {[%clk 0:00:08]} 95. Kf6 {[%clk 0:00:16]}  Kh7 {[%clk 0:00:06]} 96. Re4 {[%clk 0:00:17]}  Kh8 {[%clk 0:00:06]} 97. Re7 {[%clk 0:00:17]}  Kg8 {[%clk 0:00:05]} 98. Kxg6 {[%clk 0:00:17]}  Kf8 {[%clk 0:00:06]} 99. Re6 {[%clk 0:00:18]}  Kg8 {[%clk 0:00:05]} 100. Re8# {[%clk 0:00:18]} 1-0


[Site "https://www.chess.com"]